[Event "*** Titled Tuesday Blitz"]
[Site "Chess.com"]
[Date "2020.12.01"]
[Round "6"]
[White "igorcadilhac"]
[Black "szabadaba"]
[Result "0-1"]
[WhiteElo "2462"]
[BlackElo "2666"]
[TimeControl "180+1"]
[EndTime "11:03:56 PST"]
[Termination "szabadaba won by resignation"]

1. e4 {[%clk 0:03:00.9]} 1... c6 {[%clk 0:02:54]} 2. d4 {[%clk 0:03:00.5]} 2...
d5 {[%clk 0:02:53.9]} 3. Nc3 {[%clk 0:03:01]} 3... dxe4 {[%clk 0:02:54]} 4. Nxe4
{[%clk 0:03:01.9]} 4... Nd7 {[%clk 0:02:54.6]} 5. Bd3 {[%clk 0:03:00.8]} 5...
Ngf6 {[%clk 0:02:54.7]} 6. Ng5 {[%clk 0:02:59.4]} 6... e6 {[%clk 0:02:54.3]} 7.
Ne2 {[%clk 0:02:52.8]} 7... Bd6 {[%clk 0:02:52.7]} 8. Bf4 {[%clk 0:02:49.8]}
8... Qc7 {[%clk 0:02:51.7]} 9. Qd2 {[%clk 0:02:38.1]} 9... h6 {[%clk 0:02:48.8]}
10. Nxe6 {[%clk 0:02:09.6]} 10... fxe6 {[%clk 0:02:47.8]} 11. Bg6+ {[%clk
0:02:09.5]} 11... Ke7 {[%clk 0:02:46.7]} 12. O-O-O {[%clk 0:02:03.5]} 12... Nf8
{[%clk 0:02:46.3]} 13. Bd3 {[%clk 0:01:49.1]} 13... Kf7 {[%clk 0:02:38.8]} 14.
Rhe1 {[%clk 0:01:44.7]} 14... Bd7 {[%clk 0:02:34.4]} 15. Kb1 {[%clk 0:01:43.1]}
15... Re8 {[%clk 0:02:29.7]} 16. f3 {[%clk 0:01:26.8]} 16... b5 {[%clk 0:02:19]}
17. g4 {[%clk 0:01:23.9]} 17... Nd5 {[%clk 0:02:17.5]} 18. Bxd6 {[%clk
0:01:13.2]} 18... Qxd6 {[%clk 0:02:18.4]} 19. f4 {[%clk 0:01:07]} 19... h5
{[%clk 0:02:08]} 20. h3 {[%clk 0:00:59.7]} 20... hxg4 {[%clk 0:02:06.2]} 21.
hxg4 {[%clk 0:01:00.6]} 21... Ng6 {[%clk 0:02:00.7]} 22. Ng3 {[%clk 0:00:53.9]}
22... Ngxf4 {[%clk 0:01:55.9]} 23. Ne4 {[%clk 0:00:51.4]} 23... Qe7 {[%clk
0:01:51.7]} 24. g5 {[%clk 0:00:41]} 24... Rh4 {[%clk 0:01:48.4]} 25. Qf2 {[%clk
0:00:30.5]} 25... Reh8 {[%clk 0:01:46.8]} 26. Nc5 {[%clk 0:00:14.9]} 26... Bc8
{[%clk 0:01:31.7]} 27. Re4 {[%clk 0:00:10.7]} 27... Qxg5 {[%clk 0:01:29.3]} 28.
Rg1 {[%clk 0:00:10]} 28... Rh1 {[%clk 0:01:27.2]} 29. Ree1 {[%clk 0:00:07.4]}
29... Qh4 {[%clk 0:01:20.6]} 30. Rxh1 {[%clk 0:00:02.1]} 30... Qxf2 {[%clk
0:01:18.3]} 31. Rhf1 {[%clk 0:00:02.4]} 31... Qxd4 {[%clk 0:01:16]} 0-1

[Event "*** Titled Tuesday Blitz"]
[Site "Chess.com"]
[Date "2020.12.01"]
[Round "6"]
[White "esrosenberg"]
[Black "Klavdia_Nik"]
[Result "1-0"]
[WhiteElo "2220"]
[BlackElo "2064"]
[TimeControl "180+1"]
[EndTime "11:03:58 PST"]
[Termination "esrosenberg won on time"]

1. Nf3 {[%clk 0:03:00.9]} 1... Nf6 {[%clk 0:01:47.3]} 2. c4 {[%clk 0:02:59]}
2... c5 {[%clk 0:01:44.4]} 3. Nc3 {[%clk 0:02:56.7]} 3... g6 {[%clk 0:01:38.3]}
4. g3 {[%clk 0:02:55.6]} 4... b6 {[%clk 0:01:37.6]} 5. Bg2 {[%clk 0:02:55.9]}
5... Bb7 {[%clk 0:01:37.9]} 6. O-O {[%clk 0:02:56.4]} 6... Bg7 {[%clk
0:01:37.9]} 7. d4 {[%clk 0:02:57]} 7... O-O {[%clk 0:01:36.5]} 8. d5 {[%clk
0:02:55.3]} 8... d6 {[%clk 0:01:36.9]} 9. e4 {[%clk 0:02:39.9]} 9... b5 {[%clk
0:01:33.1]} 10. e5 {[%clk 0:02:37.2]} 10... dxe5 {[%clk 0:01:24.2]} 11. Nxb5
{[%clk 0:02:36.8]} 11... Ne8 {[%clk 0:01:11.4]} 12. Rb1 {[%clk 0:02:25.7]} 12...
Nd6 {[%clk 0:01:08.6]} 13. Na3 {[%clk 0:02:10.2]} 13... e4 {[%clk 0:01:00.5]}
14. Nd2 {[%clk 0:01:57.6]} 14... f5 {[%clk 0:00:59.3]} 15. Qe2 {[%clk
0:01:41.5]} 15... Nd7 {[%clk 0:00:56.2]} 16. f3 {[%clk 0:01:41]} 16... Bd4+
{[%clk 0:00:15.3]} 17. Kh1 {[%clk 0:01:40.7]} 17... exf3 {[%clk 0:00:10.4]} 18.
Bxf3 {[%clk 0:01:32]} 18... Bf6 {[%clk 0:00:08.5]} 19. Qe6+ {[%clk 0:01:26.8]}
19... Kg7 {[%clk 0:00:06.2]} 20. b4 {[%clk 0:01:15.4]} 20... Ne5 {[%clk
0:00:03.2]} 21. bxc5 {[%clk 0:01:04.9]} 21... Bc8 {[%clk 0:00:03.2]} 22. cxd6
{[%clk 0:01:02.4]} 22... Bxe6 {[%clk 0:00:02.5]} 23. dxe6 {[%clk 0:01:03.3]}
23... Qxd6 {[%clk 0:00:02.4]} 24. Nb5 {[%clk 0:01:00.5]} 24... Qc5 {[%clk
0:00:01.4]} 25. Bxa8 {[%clk 0:00:59.9]} 1-0

[Event "*** Titled Tuesday Blitz"]
[Site "Chess.com"]
[Date "2020.12.01"]
[Round "6"]
[White "HouseOfDurin"]
[Black "Joel1285"]
[Result "0-1"]
[WhiteElo "2089"]
[BlackElo "1837"]
[TimeControl "180+1"]
[EndTime "11:03:59 PST"]
[Termination "Joel1285 won on time"]

1. d4 {[%clk 0:03:00.9]} 1... Nf6 {[%clk 0:02:59.5]} 2. Bg5 {[%clk 0:03:01.3]}
2... c5 {[%clk 0:02:58.7]} 3. Bxf6 {[%clk 0:03:01.1]} 3... gxf6 {[%clk
0:02:59.6]} 4. c3 {[%clk 0:03:01.4]} 4... Qb6 {[%clk 0:02:58.2]} 5. Qc2 {[%clk
0:02:59.9]} 5... Nc6 {[%clk 0:02:55.2]} 6. e3 {[%clk 0:02:59.2]} 6... Bg7 {[%clk
0:02:54.6]} 7. Nd2 {[%clk 0:02:56.4]} 7... O-O {[%clk 0:02:54.4]} 8. g3 {[%clk
0:02:45.8]} 8... d6 {[%clk 0:02:53.6]} 9. Bg2 {[%clk 0:02:45.3]} 9... f5 {[%clk
0:02:52.8]} 10. Ne2 {[%clk 0:02:44.3]} 10... e6 {[%clk 0:02:52.7]} 11. O-O
{[%clk 0:02:43.6]} 11... Bd7 {[%clk 0:02:45.7]} 12. a3 {[%clk 0:02:41.6]} 12...
Rac8 {[%clk 0:02:37.5]} 13. Qb3 {[%clk 0:02:26.5]} 13... Qxb3 {[%clk 0:02:29.2]}
14. Nxb3 {[%clk 0:02:27.4]} 14... b6 {[%clk 0:02:23.2]} 15. a4 {[%clk
0:02:13.9]} 15... c4 {[%clk 0:02:07.7]} 16. Nd2 {[%clk 0:01:21.4]} 16... Na5
{[%clk 0:02:04.6]} 17. d5 {[%clk 0:01:15.3]} 17... e5 {[%clk 0:01:20.7]} 18. e4
{[%clk 0:00:58.1]} 18... Rfe8 {[%clk 0:00:38.4]} 0-1

[Event "*** Titled Tuesday Blitz"]
[Site "Chess.com"]
[Date "2020.12.01"]
[Round "6"]
[White "PriSachu"]
[Black "Skat2704"]
[Result "1-0"]
[WhiteElo "2528"]
[BlackElo "2344"]
[TimeControl "180+1"]
[EndTime "11:04:01 PST"]
[Termination "PriSachu won by resignation"]

1. e4 {[%clk 0:01:52.2]} 1... c6 {[%clk 0:02:59.4]} 2. d4 {[%clk 0:01:50.6]}
2... d5 {[%clk 0:02:59.1]} 3. Nd2 {[%clk 0:01:51.1]} 3... dxe4 {[%clk
0:02:58.7]} 4. Nxe4 {[%clk 0:01:52]} 4... Nf6 {[%clk 0:02:58.6]} 5. Nxf6+ {[%clk
0:01:52.2]} 5... exf6 {[%clk 0:02:58.5]} 6. c3 {[%clk 0:01:53.1]} 6... Bd6
{[%clk 0:02:58.2]} 7. Bd3 {[%clk 0:01:53.7]} 7... O-O {[%clk 0:02:58]} 8. Qc2
{[%clk 0:01:54.4]} 8... Re8+ {[%clk 0:02:57.7]} 9. Ne2 {[%clk 0:01:55]} 9... h6
{[%clk 0:02:56.3]} 10. O-O {[%clk 0:01:54.3]} 10... Qc7 {[%clk 0:02:53.2]} 11.
Ng3 {[%clk 0:01:50.6]} 11... Nd7 {[%clk 0:02:51.6]} 12. Bd2 {[%clk 0:01:49.1]}
12... Nf8 {[%clk 0:02:49.2]} 13. Rae1 {[%clk 0:01:49.4]} 13... Bd7 {[%clk
0:02:45]} 14. Rxe8 {[%clk 0:01:45.6]} 14... Rxe8 {[%clk 0:02:44.4]} 15. Re1
{[%clk 0:01:46.1]} 15... Rxe1+ {[%clk 0:02:43.4]} 16. Bxe1 {[%clk 0:01:46.3]}
16... c5 {[%clk 0:02:39.6]} 17. dxc5 {[%clk 0:01:44.3]} 17... Bxc5 {[%clk
0:02:37.9]} 18. Qe2 {[%clk 0:01:38.5]} 18... Bc6 {[%clk 0:02:30.6]} 19. Bd2
{[%clk 0:01:37.7]} 19... Qe5 {[%clk 0:02:26.4]} 20. Be3 {[%clk 0:01:33]} 20...
Bxe3 {[%clk 0:02:24.3]} 21. Qxe3 {[%clk 0:01:33.6]} 21... Qxe3 {[%clk
0:02:23.2]} 22. fxe3 {[%clk 0:01:34.5]} 22... Nd7 {[%clk 0:02:22]} 23. Kf2
{[%clk 0:01:23.9]} 23... Ne5 {[%clk 0:02:21.7]} 24. Be2 {[%clk 0:01:24.4]} 24...
g6 {[%clk 0:02:19.4]} 25. e4 {[%clk 0:01:24.4]} 25... Kf8 {[%clk 0:02:18.6]} 26.
Ke3 {[%clk 0:01:24.9]} 26... Ke7 {[%clk 0:02:18.6]} 27. Kd4 {[%clk 0:01:24.6]}
27... Kd6 {[%clk 0:02:17.9]} 28. c4 {[%clk 0:01:23.1]} 28... b6 {[%clk 0:02:17]}
29. b4 {[%clk 0:01:23.2]} 29... Bd7 {[%clk 0:02:16.1]} 30. c5+ {[%clk
0:01:22.9]} 30... bxc5+ {[%clk 0:02:16.2]} 31. bxc5+ {[%clk 0:01:23.8]} 31...
Kc7 {[%clk 0:02:17.1]} 32. Bc4 {[%clk 0:01:17.5]} 32... Be6 {[%clk 0:02:10.9]}
33. Bd5 {[%clk 0:01:12.6]} 33... Nc6+ {[%clk 0:02:06.8]} 34. Bxc6 {[%clk
0:01:10]} 34... Kxc6 {[%clk 0:02:06.6]} 35. a3 {[%clk 0:01:10.4]} 35... Kb5
{[%clk 0:02:05.1]} 36. Ne2 {[%clk 0:01:05.1]} 36... a5 {[%clk 0:02:04.6]} 37.
Nc3+ {[%clk 0:01:04.6]} 37... Kc6 {[%clk 0:02:04.7]} 38. g3 {[%clk 0:01:01.4]}
38... Bb3 {[%clk 0:01:59.7]} 39. h4 {[%clk 0:01:00.9]} 39... f5 {[%clk
0:01:58.6]} 40. exf5 {[%clk 0:00:59.5]} 40... gxf5 {[%clk 0:01:58.3]} 41. Ne2
{[%clk 0:00:59.8]} 41... Kb5 {[%clk 0:01:53.8]} 42. Nf4 {[%clk 0:00:59.1]} 42...
Be6 {[%clk 0:01:49.4]} 43. Nxe6 {[%clk 0:00:30.8]} 43... fxe6 {[%clk 0:01:49]}
44. Ke5 {[%clk 0:00:31.4]} 44... Kxc5 {[%clk 0:01:45.8]} 45. Kxe6 {[%clk
0:00:31.8]} 45... a4 {[%clk 0:01:44.7]} 46. Kxf5 {[%clk 0:00:31.9]} 46... Kc4
{[%clk 0:01:45]} 47. g4 {[%clk 0:00:32.4]} 47... Kb3 {[%clk 0:01:45.9]} 48. g5
{[%clk 0:00:32.1]} 48... Kxa3 {[%clk 0:01:46.8]} 49. gxh6 {[%clk 0:00:31.8]}
49... Kb2 {[%clk 0:01:44.5]} 50. h7 {[%clk 0:00:31.7]} 50... a3 {[%clk
0:01:44.7]} 51. h8=Q+ {[%clk 0:00:31.1]} 1-0

[Event "*** Titled Tuesday Blitz"]
[Site "Chess.com"]
[Date "2020.12.01"]
[Round "6"]
[White "nikitadovbnya2008"]
[Black "CalinGheorghiu"]
[Result "0-1"]
[WhiteElo "2187"]
[BlackElo "2389"]
[TimeControl "180+1"]
[EndTime "11:04:01 PST"]
[Termination "CalinGheorghiu won by resignation"]

1. d4 {[%clk 0:03:00.9]} 1... Nf6 {[%clk 0:02:59]} 2. Nf3 {[%clk 0:03:01.2]}
2... g6 {[%clk 0:02:58.9]} 3. c4 {[%clk 0:03:01.4]} 3... Bg7 {[%clk 0:02:59.8]}
4. Nc3 {[%clk 0:03:01.5]} 4... O-O {[%clk 0:03:00.5]} 5. e4 {[%clk 0:03:01.3]}
5... d6 {[%clk 0:03:00.3]} 6. Be2 {[%clk 0:03:01.7]} 6... Nbd7 {[%clk
0:03:00.1]} 7. Be3 {[%clk 0:03:00.7]} 7... e5 {[%clk 0:03:00.4]} 8. d5 {[%clk
0:03:00.7]} 8... a5 {[%clk 0:02:57.7]} 9. Nd2 {[%clk 0:03:00.7]} 9... Nc5 {[%clk
0:02:57.1]} 10. b3 {[%clk 0:02:59]} 10... Ne8 {[%clk 0:02:47.8]} 11. a3 {[%clk
0:02:59.1]} 11... f5 {[%clk 0:02:47.3]} 12. f3 {[%clk 0:02:59.2]} 12... fxe4
{[%clk 0:02:42.3]} 13. Ndxe4 {[%clk 0:02:57.9]} 13... Qh4+ {[%clk 0:02:42.7]}
14. g3 {[%clk 0:02:56.8]} 14... Qh3 {[%clk 0:02:41]} 15. Nxc5 {[%clk 0:02:51.2]}
15... dxc5 {[%clk 0:02:41]} 16. Ne4 {[%clk 0:02:49.4]} 16... b6 {[%clk
0:02:38.1]} 17. Qd2 {[%clk 0:02:38.5]} 17... Nd6 {[%clk 0:02:34]} 18. O-O-O
{[%clk 0:02:26.7]} 18... a4 {[%clk 0:02:29.3]} 19. b4 {[%clk 0:02:23.2]} 19...
cxb4 {[%clk 0:02:28.7]} 20. Qxb4 {[%clk 0:02:22.8]} 20... Nxe4 {[%clk
0:02:23.6]} 21. fxe4 {[%clk 0:02:23.7]} 21... Qg2 {[%clk 0:02:23.1]} 22. Bd3
{[%clk 0:02:09.7]} 22... Bg4 {[%clk 0:02:07.3]} 23. Rdf1 {[%clk 0:02:08.6]}
23... Qa2 {[%clk 0:02:07.5]} 24. Qb2 {[%clk 0:01:58.5]} 24... Qxb2+ {[%clk
0:01:52]} 25. Kxb2 {[%clk 0:01:59.4]} 25... Bh3 {[%clk 0:01:50]} 26. Rxf8+
{[%clk 0:01:51.7]} 26... Bxf8 {[%clk 0:01:49.8]} 27. Rc1 {[%clk 0:01:47]} 27...
Bc5 {[%clk 0:01:48.9]} 28. Bd2 {[%clk 0:01:30.6]} 28... Rf8 {[%clk 0:01:38.6]}
29. Bc3 {[%clk 0:01:25.7]} 29... Rf3 {[%clk 0:01:33.2]} 30. Rd1 {[%clk
0:01:15.1]} 30... Bd6 {[%clk 0:01:21.8]} 31. Bc2 {[%clk 0:01:12.3]} 31... Bxa3+
{[%clk 0:01:20.5]} 32. Kxa3 {[%clk 0:01:10.3]} 32... Rxc3+ {[%clk 0:01:20.3]}
33. Kb2 {[%clk 0:01:10.5]} 33... Rxc4 {[%clk 0:01:19.7]} 34. d6 {[%clk
0:01:04.2]} 34... cxd6 {[%clk 0:01:14]} 35. Rxd6 {[%clk 0:01:05.1]} 35... a3+
{[%clk 0:01:09.4]} 36. Kb3 {[%clk 0:00:51.9]} 36... a2 {[%clk 0:01:07.6]} 37.
Rd1 {[%clk 0:00:50.8]} 37... Be6 {[%clk 0:01:04.2]} 38. Kb2 {[%clk 0:00:43.7]}
38... b5 {[%clk 0:01:03.7]} 39. Rd6 {[%clk 0:00:33.2]} 39... Rxc2+ {[%clk
0:01:02.2]} 40. Kxc2 {[%clk 0:00:32.8]} 40... a1=Q {[%clk 0:01:02.3]} 0-1

[Event "*** Titled Tuesday Blitz"]
[Site "Chess.com"]
[Date "2020.12.01"]
[Round "6"]
[White "PavelShkapenko"]
[Black "gross-aleks"]
[Result "0-1"]
[WhiteElo "2685"]
[BlackElo "2542"]
[TimeControl "180+1"]
[EndTime "11:04:10 PST"]
[Termination "gross-aleks won by resignation"]

1. e4 {[%clk 0:02:59.1]} 1... c5 {[%clk 0:02:59.7]} 2. c3 {[%clk 0:02:56.6]}
2... Nf6 {[%clk 0:02:58.5]} 3. e5 {[%clk 0:02:52.3]} 3... Nd5 {[%clk 0:02:58.6]}
4. d4 {[%clk 0:02:53.2]} 4... cxd4 {[%clk 0:02:59.5]} 5. cxd4 {[%clk 0:02:53.5]}
5... d6 {[%clk 0:02:59.2]} 6. Nf3 {[%clk 0:02:52.9]} 6... Nc6 {[%clk 0:02:59]}
7. Bc4 {[%clk 0:02:52.3]} 7... e6 {[%clk 0:02:59.2]} 8. O-O {[%clk 0:02:51.4]}
8... Nb6 {[%clk 0:02:58.9]} 9. Bb3 {[%clk 0:02:51]} 9... d5 {[%clk 0:02:57.9]}
10. Bg5 {[%clk 0:02:45.2]} 10... Be7 {[%clk 0:02:58]} 11. Bxe7 {[%clk
0:02:44.9]} 11... Qxe7 {[%clk 0:02:58.7]} 12. Nc3 {[%clk 0:02:44.7]} 12... a6
{[%clk 0:02:57.2]} 13. Rc1 {[%clk 0:02:43.4]} 13... Bd7 {[%clk 0:02:56.8]} 14.
Bc2 {[%clk 0:02:42.8]} 14... O-O-O {[%clk 0:02:50]} 15. Na4 {[%clk 0:02:34.4]}
15... Nxa4 {[%clk 0:02:44.2]} 16. Bxa4 {[%clk 0:02:34]} 16... Kb8 {[%clk
0:02:44.4]} 17. Re1 {[%clk 0:01:56.8]} 17... Rc8 {[%clk 0:02:41.9]} 18. Re3
{[%clk 0:01:55.6]} 18... Na5 {[%clk 0:02:41.5]} 19. Bb3 {[%clk 0:01:46]} 19...
Rxc1 {[%clk 0:02:30.6]} 20. Qxc1 {[%clk 0:01:45.7]} 20... Rc8 {[%clk 0:02:29.8]}
21. Rc3 {[%clk 0:01:45.8]} 21... Nxb3 {[%clk 0:02:29.2]} 22. axb3 {[%clk
0:01:42.4]} 22... Qb4 {[%clk 0:02:28.6]} 23. h4 {[%clk 0:01:30.7]} 23... h6
{[%clk 0:02:28.1]} 24. Rxc8+ {[%clk 0:01:25.5]} 24... Bxc8 {[%clk 0:02:27.5]}
25. Qc3 {[%clk 0:01:26]} 25... Qe7 {[%clk 0:01:59.1]} 26. b4 {[%clk 0:01:21.7]}
26... Qc7 {[%clk 0:01:53.2]} 27. g3 {[%clk 0:01:02.2]} 27... Qxc3 {[%clk
0:01:52.4]} 28. bxc3 {[%clk 0:01:02.1]} 28... Kc7 {[%clk 0:01:52.5]} 29. Kf1
{[%clk 0:01:02]} 29... Kc6 {[%clk 0:01:52.8]} 30. Ke1 {[%clk 0:01:02.5]} 30...
Kb5 {[%clk 0:01:53.1]} 31. Kd2 {[%clk 0:01:03.1]} 31... Ka4 {[%clk 0:01:51.6]}
32. Kc2 {[%clk 0:01:01.1]} 32... Ka3 {[%clk 0:01:51.9]} 33. Nd2 {[%clk
0:00:59.5]} 33... Bd7 {[%clk 0:01:52.1]} 34. Nb1+ {[%clk 0:00:57.6]} 34... Ka2
{[%clk 0:01:50.8]} 35. Nd2 {[%clk 0:00:53.3]} 35... Ba4+ {[%clk 0:01:49.8]} 36.
Kd3 {[%clk 0:00:53]} 36... Ka3 {[%clk 0:01:49.1]} 37. Nf3 {[%clk 0:00:49.5]}
37... Kb2 {[%clk 0:01:46]} 38. Kd2 {[%clk 0:00:48.2]} 38... Bc2 {[%clk
0:01:43.4]} 39. Ne1 {[%clk 0:00:40.9]} 39... Bb1 {[%clk 0:01:42.7]} 40. Ng2
{[%clk 0:00:38.2]} 40... b6 {[%clk 0:01:42.7]} 41. Ne3 {[%clk 0:00:37.9]} 41...
a5 {[%clk 0:01:42.8]} 42. Nd1+ {[%clk 0:00:36.8]} 42... Kb3 {[%clk 0:01:41.9]}
43. bxa5 {[%clk 0:00:37]} 43... bxa5 {[%clk 0:01:41.5]} 44. Kc1 {[%clk
0:00:37.5]} 44... Bh7 {[%clk 0:01:38.9]} 45. Nb2 {[%clk 0:00:34]} 45... a4
{[%clk 0:01:38.3]} 46. Nxa4 {[%clk 0:00:34.3]} 46... Kxa4 {[%clk 0:01:38.5]} 47.
Kd2 {[%clk 0:00:34.8]} 47... Kb3 {[%clk 0:01:38.2]} 48. f3 {[%clk 0:00:34]}
48... Kc4 {[%clk 0:01:36.1]} 49. g4 {[%clk 0:00:34]} 49... Bb1 {[%clk
0:01:34.7]} 50. Kc1 {[%clk 0:00:30.1]} 50... Kxc3 {[%clk 0:01:33.1]} 51. Kxb1
{[%clk 0:00:30.5]} 51... Kxd4 {[%clk 0:01:33.1]} 52. Kc2 {[%clk 0:00:31.2]}
52... Kxe5 {[%clk 0:01:32.1]} 53. Kd3 {[%clk 0:00:31.4]} 53... Kf4 {[%clk
0:01:32.2]} 54. Ke2 {[%clk 0:00:31.5]} 0-1

[Event "*** Titled Tuesday Blitz"]
[Site "Chess.com"]
[Date "2020.12.01"]
[Round "6"]
[White "vladimirdamjanovic"]
[Black "bylavochka"]
[Result "1-0"]
[WhiteElo "2457"]
[BlackElo "2216"]
[TimeControl "180+1"]
[EndTime "11:04:10 PST"]
[Termination "vladimirdamjanovic won on time"]

1. e4 {[%clk 0:02:59.6]} 1... c5 {[%clk 0:03:00.2]} 2. Nf3 {[%clk 0:02:59.6]}
2... d6 {[%clk 0:03:00]} 3. Bb5+ {[%clk 0:02:59.8]} 3... Bd7 {[%clk 0:02:59.8]}
4. c4 {[%clk 0:03:00.1]} 4... a6 {[%clk 0:02:59.2]} 5. Bxd7+ {[%clk 0:02:59]}
5... Qxd7 {[%clk 0:03:00.1]} 6. Nc3 {[%clk 0:02:59.2]} 6... Nc6 {[%clk 0:03:00]}
7. O-O {[%clk 0:02:59.1]} 7... e6 {[%clk 0:02:55]} 8. d4 {[%clk 0:02:58.9]} 8...
cxd4 {[%clk 0:02:54.8]} 9. Nxd4 {[%clk 0:02:59.2]} 9... Nge7 {[%clk 0:02:55.2]}
10. Be3 {[%clk 0:02:54.4]} 10... g6 {[%clk 0:02:55.3]} 11. Nxc6 {[%clk
0:02:54.4]} 11... Nxc6 {[%clk 0:02:51.9]} 12. Na4 {[%clk 0:02:53.9]} 12... Qd8
{[%clk 0:02:49.7]} 13. Qb3 {[%clk 0:02:39.3]} 13... Rb8 {[%clk 0:02:44.2]} 14.
Bb6 {[%clk 0:02:39]} 14... Qd7 {[%clk 0:02:15.7]} 15. Rad1 {[%clk 0:02:36.7]}
15... Bg7 {[%clk 0:01:36.2]} 16. Bc5 {[%clk 0:02:11.6]} 16... Bf8 {[%clk
0:01:14.2]} 17. Ba3 {[%clk 0:01:33.9]} 17... Qc7 {[%clk 0:01:06.5]} 18. c5
{[%clk 0:01:28.3]} 18... dxc5 {[%clk 0:00:52.9]} 19. Bxc5 {[%clk 0:01:25.5]}
19... Bxc5 {[%clk 0:00:44.7]} 20. Nxc5 {[%clk 0:01:25.3]} 20... O-O {[%clk
0:00:25.6]} 21. Rd7 {[%clk 0:00:58.8]} 21... Qe5 {[%clk 0:00:18.4]} 22. Rc1
{[%clk 0:00:57.6]} 22... Na5 {[%clk 0:00:04.1]} 23. Qb6 {[%clk 0:00:50.5]} 23...
Nc6 {[%clk 0:00:01.5]} 24. Rxb7 {[%clk 0:00:47.8]} 24... Rxb7 {[%clk 0:00:01.4]}
25. Qxb7 {[%clk 0:00:47.2]} 1-0

[Event "*** Titled Tuesday Blitz"]
[Site "Chess.com"]
[Date "2020.12.01"]
[Round "6"]
[White "Keures"]
[Black "Chessdreamer2020"]
[Result "1/2-1/2"]
[WhiteElo "2259"]
[BlackElo "2530"]
[TimeControl "180+1"]
[EndTime "11:04:14 PST"]
[Termination "Game drawn by stalemate"]

1. d4 {[%clk 0:03:00.9]} 1... d6 {[%clk 0:02:57.1]} 2. c4 {[%clk 0:02:58.5]}
2... e5 {[%clk 0:02:57.1]} 3. dxe5 {[%clk 0:02:30.3]} 3... dxe5 {[%clk 0:02:58]}
4. Qxd8+ {[%clk 0:02:29.9]} 4... Kxd8 {[%clk 0:02:58.7]} 5. g3 {[%clk
0:02:30.1]} 5... c6 {[%clk 0:02:58]} 6. Bh3 {[%clk 0:02:29.5]} 6... Nd7 {[%clk
0:02:55.8]} 7. Nf3 {[%clk 0:02:28.7]} 7... f6 {[%clk 0:02:56]} 8. O-O {[%clk
0:02:28.4]} 8... Kc7 {[%clk 0:02:55.1]} 9. b3 {[%clk 0:02:28.3]} 9... Nh6 {[%clk
0:02:51.8]} 10. Ba3 {[%clk 0:02:28]} 10... Bxa3 {[%clk 0:02:44.4]} 11. Nxa3
{[%clk 0:02:28.9]} 11... Nc5 {[%clk 0:02:42.7]} 12. Bxc8 {[%clk 0:02:28.4]}
12... Raxc8 {[%clk 0:02:43.6]} 13. Rfd1 {[%clk 0:02:25.6]} 13... Rcd8 {[%clk
0:02:42.8]} 14. Kf1 {[%clk 0:02:21.4]} 14... Ne4 {[%clk 0:02:41.6]} 15. h3
{[%clk 0:02:06.8]} 15... Nf5 {[%clk 0:02:34.6]} 16. Rac1 {[%clk 0:01:58.7]}
16... Rxd1+ {[%clk 0:02:27.3]} 17. Rxd1 {[%clk 0:01:58.6]} 17... Nc3 {[%clk
0:02:27.7]} 18. Rd2 {[%clk 0:01:56.7]} 18... Rd8 {[%clk 0:02:28]} 19. Ke1 {[%clk
0:01:47.8]} 19... Rxd2 {[%clk 0:02:25.9]} 20. Kxd2 {[%clk 0:01:48.7]} 20... Nxa2
{[%clk 0:02:26.4]} 21. Nc2 {[%clk 0:01:49.2]} 21... a5 {[%clk 0:02:23.7]} 22.
Nfe1 {[%clk 0:01:47.5]} 22... Nb4 {[%clk 0:02:22.9]} 23. Nxb4 {[%clk 0:01:47.6]}
23... axb4 {[%clk 0:02:23.8]} 24. Nd3 {[%clk 0:01:47.8]} 24... Nd4 {[%clk
0:02:20.2]} 25. Nc1 {[%clk 0:01:44.6]} 25... Kd6 {[%clk 0:02:17.3]} 26. e3
{[%clk 0:01:44]} 26... Nf3+ {[%clk 0:02:17.1]} 27. Ke2 {[%clk 0:01:43.6]} 27...
Ng1+ {[%clk 0:02:17]} 28. Kd2 {[%clk 0:01:38.3]} 28... Nxh3 {[%clk 0:02:17.9]}
29. f4 {[%clk 0:01:37.4]} 29... exf4 {[%clk 0:02:16.8]} 30. exf4 {[%clk
0:01:38.3]} 30... g5 {[%clk 0:02:16.3]} 31. Nd3 {[%clk 0:01:35.8]} 31... gxf4
{[%clk 0:02:15.5]} 32. gxf4 {[%clk 0:01:34.6]} 32... c5 {[%clk 0:02:16]} 33. Ke3
{[%clk 0:01:34.8]} 33... b6 {[%clk 0:02:10.5]} 34. Kf3 {[%clk 0:01:29.6]} 34...
Ke6 {[%clk 0:02:09.4]} 35. Kg2 {[%clk 0:01:26.7]} 35... Nxf4+ {[%clk 0:02:07.8]}
36. Nxf4+ {[%clk 0:01:26.8]} 36... Ke5 {[%clk 0:02:07.3]} 37. Kf3 {[%clk
0:01:24.2]} 37... Kd4 {[%clk 0:02:07.1]} 38. Nd5 {[%clk 0:01:24.2]} 38... b5
{[%clk 0:02:06.2]} 39. Ke2 {[%clk 0:01:10.9]} 39... bxc4 {[%clk 0:02:05.6]} 40.
bxc4 {[%clk 0:01:10.8]} 40... Kxc4 {[%clk 0:02:05.6]} 41. Nxf6 {[%clk
0:01:09.4]} 41... h6 {[%clk 0:02:06.1]} 42. Kd2 {[%clk 0:01:09.1]} 42... Kd4
{[%clk 0:02:03.6]} 43. Nh5 {[%clk 0:01:01.6]} 43... c4 {[%clk 0:02:01.9]} 44.
Nf4 {[%clk 0:01:01.7]} 44... Ke4 {[%clk 0:01:59.8]} 45. Ne2 {[%clk 0:00:58.4]}
45... h5 {[%clk 0:01:58.2]} 46. Ng3+ {[%clk 0:00:58.3]} 46... Kd4 {[%clk
0:01:58.2]} 47. Nxh5 {[%clk 0:00:59.2]} 47... c3+ {[%clk 0:01:58.8]} 48. Kc2
{[%clk 0:00:59.5]} 48... Kc4 {[%clk 0:01:59.3]} 49. Nf4 {[%clk 0:00:57.2]} 49...
b3+ {[%clk 0:01:59.8]} 50. Kc1 {[%clk 0:00:57.1]} 50... Kd4 {[%clk 0:01:47.1]}
51. Ne2+ {[%clk 0:00:53.6]} 51... Kd3 {[%clk 0:01:47]} 52. Nf4+ {[%clk
0:00:52.6]} 52... Ke3 {[%clk 0:01:44.6]} 53. Nd5+ {[%clk 0:00:50.4]} 53... Kd4
{[%clk 0:01:44.5]} 54. Nf4 {[%clk 0:00:49.3]} 54... Kc5 {[%clk 0:01:44.2]} 55.
Ne2 {[%clk 0:00:46.7]} 55... Kb4 {[%clk 0:01:43.3]} 56. Kb1 {[%clk 0:00:46.9]}
56... Kc4 {[%clk 0:01:41.9]} 57. Nxc3 {[%clk 0:00:45.9]} 57... Kxc3 {[%clk
0:01:41.7]} 58. Kc1 {[%clk 0:00:46.3]} 58... Kc4 {[%clk 0:01:41.4]} 59. Kb2
{[%clk 0:00:46]} 59... Kb4 {[%clk 0:01:41.8]} 60. Kb1 {[%clk 0:00:46.5]} 60...
Ka4 {[%clk 0:01:41.1]} 61. Kb2 {[%clk 0:00:46.7]} 61... Kb4 {[%clk 0:01:41.7]}
62. Kb1 {[%clk 0:00:47.6]} 62... Kc3 {[%clk 0:01:42.3]} 63. Kc1 {[%clk
0:00:47.6]} 63... Kd3 {[%clk 0:01:41.8]} 64. Kb2 {[%clk 0:00:47.5]} 64... Kc4
{[%clk 0:01:42.7]} 65. Kb1 {[%clk 0:00:48]} 65... Kb4 {[%clk 0:01:43.6]} 66. Kb2
{[%clk 0:00:48.3]} 66... Ka4 {[%clk 0:01:43.5]} 67. Kb1 {[%clk 0:00:48.1]} 67...
Ka3 {[%clk 0:01:44.4]} 68. Ka1 {[%clk 0:00:48.5]} 68... b2+ {[%clk 0:01:44.3]}
69. Kb1 {[%clk 0:00:48.6]} 69... Kb3 {[%clk 0:01:45]} 1/2-1/2